{"text_format":"3","workbook":"xlsx","n_sheets":2,"sheets":["Válasznyilvántartó","Válaszösszesítő"],"not_rendered":{"charts":2,"defined_names":22},"read":"whole","date_system":"1900"}

{"sheet":"Válasznyilvántartó","index":0,"n_rows":15,"n_cols":15,"rows_kept":15,"merged":[[0,3,0,4],[0,5,0,7]]}
[{"$nulls":5},"VÁLASZÖSSZESÍTŐ"]
[null,"ESKÜVŐ DÁTUMA",null,"esküvőimeghívó-nyilvántartás"]
[null,{"$f":"TODAY()+283","v":"2023-05-19"},null,"VENDÉG NEVE","ELKÜLDVE?","Válasz","HÁNYAN","VENDÉG","KAPCSOLAT","LAKCÍM","TELEPÜLÉS","MEGYE","IRÁNYÍTÓSZÁM","TELEFONSZÁM","E-MAIL-CÍM"]
[null,"HÁTRALÉVŐ NAP",null,"1. név","Igen","Igen",1,"1. házasulandó","Fivér","Cím","Település","Megye","IRÁNYÍTÓSZÁM","Telefonszám","valaki@example.com"]
[null,{"$f":"HátralévőNapok","v":283},null,"2. név","Igen","Nem",3,"1. házasulandó","Barát","Cím","Település","Megye","IRÁNYÍTÓSZÁM","Telefonszám","valaki@example.com"]
[null,"OTT LESZ",null,"3. név","Igen","Igen",1,"Egyéb","Barát","Cím","Település","Megye","IRÁNYÍTÓSZÁM","Telefonszám","valaki@example.com"]
[null,{"$f":"RésztvevőkÖsszesen","v":12},null,"4. név","Igen","Nem",2,"2. házasulandó","Barát","Cím","Település","Megye","IRÁNYÍTÓSZÁM","Telefonszám","valaki@example.com"]
[null,"NEM LESZ OTT",null,"5. név","Igen","Igen",2,"2. házasulandó","Barát","Cím","Település","Megye","IRÁNYÍTÓSZÁM","Telefonszám","valaki@example.com"]
[null,{"$f":"TávolmaradókÖsszesen","v":6},null,"6. név","Igen","Talán",null,"Egyéb","Barát","Cím","Település","Megye","IRÁNYÍTÓSZÁM","Telefonszám","valaki@example.com"]
[null,"VÁLASZRA VÁR",null,"7. név","Igen","Igen",2,"2. házasulandó","Barát","Cím","Település","Megye","IRÁNYÍTÓSZÁM","Telefonszám","valaki@example.com"]
[null,{"$f":"VálaszraVár","v":1},null,"8. név","Igen","Nem",1,"Egyéb","Barát","Cím","Település","Megye","IRÁNYÍTÓSZÁM","Telefonszám","valaki@example.com"]
[{"$nulls":3},"9. név","Igen","Igen",4,"1. házasulandó","Barát","Cím","Település","Megye","IRÁNYÍTÓSZÁM","Telefonszám","valaki@example.com"]
[{"$nulls":3},"10. név","Igen","Igen",2,"1. házasulandó","Barát","Cím","Település","Megye","IRÁNYÍTÓSZÁM","Telefonszám","valaki@example.com"]
[{"$nulls":3},"11. név","Igen",null,null,"2. házasulandó","Fivér","Cím","Település","Megye","IRÁNYÍTÓSZÁM","Telefonszám","valaki@example.com"]
[{"$nulls":3},"ÖSSZESEN:",{"$f":"COUNTIF(Válasznyilvántartó!$E$4:$E$14,\"Igen\")","v":11},{"$f":"COUNTA(Válasznyilvántartó!$F$4:$F$14)","v":10},{"$f":"SUBTOTAL(109,tblztMeghívások[HÁNYAN])","v":18}]

{"sheet":"Válaszösszesítő","index":1,"n_rows":11,"n_cols":15,"rows_kept":11,"merged":[[0,3,0,4],[0,5,0,8],[2,3,6,3],[2,4,6,4],[7,3,11,3],[7,4,11,4]]}
[{"$nulls":3},"VÁLASZNYILVÁNTARTÓ"]
[null,"ESKÜVŐ DÁTUMA",null,"válasznyilvántartó",{"$nulls":10},"jegyzetek"]
[null,{"$f":"EsküvőDátuma","v":"2023-05-19"},null,"IGEN","Ebben a cellában az Igen választ küldő vendégek számát típusok szerint ábrázoló csoportosított sáv diagram látható."]
[null,"HÁTRALÉVŐ NAP",{"$nulls":3},"EGYÉB",{"$f":"IFERROR(SUMIFS(tblztMeghívások[HÁNYAN],tblztMeghívások[VENDÉG],\"=Egyéb\",tblztMeghívások[Válasz],\"Igen\"),0)","v":1},{"$f":"tblztMeghívások[[#Totals],[ELKÜLDVE?]]","v":11}]
[null,{"$f":"HátralévőNapok","v":283},{"$nulls":3},"2. HÁZASULANDÓ",{"$f":"IFERROR(SUMIFS(tblztMeghívások[HÁNYAN],tblztMeghívások[VENDÉG],\"=2. házasulandó\",tblztMeghívások[Válasz],\"Igen\"),0)","v":4},{"$f":"tblztMeghívások[[#Totals],[ELKÜLDVE?]]","v":11}]
[null,"OTT LESZ",{"$nulls":3},"1. HÁZASULANDÓ",{"$f":"IFERROR(SUMIFS(tblztMeghívások[HÁNYAN],tblztMeghívások[VENDÉG],\"=1. házasulandó\",tblztMeghívások[Válasz],\"Igen\"),0)","v":7},{"$f":"tblztMeghívások[[#Totals],[ELKÜLDVE?]]","v":11}]
[null,{"$f":"RésztvevőkÖsszesen","v":12}]
[null,"NEM LESZ OTT",null,"NEM","Ebben a cellában a Nem választ küldő vendégek számát típusok szerint ábrázoló csoportosított sáv diagram látható."]
[null,{"$f":"TávolmaradókÖsszesen","v":6},{"$nulls":3},"EGYÉB",{"$f":"IFERROR(SUMIFS(tblztMeghívások[HÁNYAN],tblztMeghívások[VENDÉG],\"=Egyéb\",tblztMeghívások[Válasz],\"Nem\"),0)","v":1},{"$f":"tblztMeghívások[[#Totals],[ELKÜLDVE?]]","v":11}]
[null,"VÁLASZRA VÁR",{"$nulls":3},"2. HÁZASULANDÓ",{"$f":"IFERROR(SUMIFS(tblztMeghívások[HÁNYAN],tblztMeghívások[VENDÉG],\"=2. házasulandó\",tblztMeghívások[Válasz],\"Nem\"),0)","v":2},{"$f":"tblztMeghívások[[#Totals],[ELKÜLDVE?]]","v":11}]
[null,{"$f":"VálaszraVár","v":1},{"$nulls":3},"1. HÁZASULANDÓ",{"$f":"IFERROR(SUMIFS(tblztMeghívások[HÁNYAN],tblztMeghívások[VENDÉG],\"=1. házasulandó\",tblztMeghívások[Válasz],\"Nem\"),0)","v":3},{"$f":"tblztMeghívások[[#Totals],[ELKÜLDVE?]]","v":11}]